Cogmind - Beta 12 @@@ ROGUE MODE // 2023.10.15 @ 21:11:53 Player: Figgis Result: Self-destructed Performance ------------- Evolutions (1) 500 Regions Visited (3) 600 Robots Destroyed (25) 125 Value Destroyed (525) 525 Prototype IDs (3) 60 Alien Tech Used (0) 0 Bonus (-25) -25 TOTAL SCORE: 1785 Bonus ------- Friendly Fire -25 Cogmind --------- Core Integrity 317/400 Matter 262/300 Energy 84/125 System Corruption 0% Temperature Warning (376) Movement Walking (470) Ox5 Location -9/Materials Parts ------- > --- POWER (1) -------- Light Ion Engine > --- PROPULSION (2) --- Aluminum Leg > --- UTILITY (4) ------ High-capacity Storage Unit Improved Light Armor Plating > --- WEAPON (2) ------- Heavy Particle Cannon Assault Rifle > --- INVENTORY (20) --- Ion Engine Improved Ion Engine Light Angular Momentum Engine Aluminum Leg Aluminum Leg Aluminum Leg Huge Storage Unit Recoil Stabilizer Hardened Light Armor Plating Hardened Light Armor Plating Reflective Plating System Shield Small Laser Particle Cannon Assault Rifle Improved Assault Rifle Rocket Launcher Mining Laser Peak State ------------ > --- POWER ------------ Light Ion Engine > --- PROPULSION ------- Aluminum Leg Aluminum Leg > --- UTILITY ---------- High-capacity Storage Unit Particle Charger Improved Light Armor Plating > --- WEAPON ----------- Heavy Particle Cannon Improved Assault Rifle > --- INVENTORY -------- Ion Engine Improved Ion Engine Light Angular Momentum Engine Aluminum Leg Aluminum Leg Huge Storage Unit Recoil Stabilizer Hardened Light Armor Plating Hardened Light Armor Plating Reflective Plating System Shield Small Laser Particle Cannon Assault Rifle Assault Rifle Rocket Launcher Mining Laser [Rating: 19] Favorites ----------- Power Light Ion Engine Engine Light Ion Engine Propulsion Aluminum Leg Leg Aluminum Leg Utility High-capacity Storage Unit Device Particle Charger Storage High-capacity Storage Unit Protection Propulsion Shielding Weapon Assault Rifle Energy Gun EM Pulse Gun Energy Cannon Heavy Particle Cannon Ballistic Gun Assault Rifle Special Weapon Mining Laser Build | -11 -10 -10 -9 ------- Run | Jun Mat Min Mat Slots Evolved 2 | . . . 2 Power . | . . . . Propulsion . | . . . . Utility 2 | . . . 2 Weapon . | . . . . Parts Attached 26 | 6 7 5 8 Power 3 | 1 1 1 . Engine 3 | 1 1 1 . Core . | . . . . Reactor . | . . . . Propulsion 4 | 2 . 1 1 Treads . | . . . . Leg 4 | 2 . 1 1 Wheel . | . . . . Hover . | . . . . Flight . | . . . . Utility 7 | 1 3 . 3 Device 1 | . . . 1 Storage 4 | 1 2 . 1 Processor . | . . . . Hackware . | . . . . Protection 2 | . 1 . 1 Artifact . | . . . . Weapon 12 | 2 3 3 4 Energy Gun 3 | 2 1 . . Energy Cannon 4 | . . 2 2 Ballistic Gun 4 | . 2 . 2 Ballistic Cannon . | . . . . Launcher . | . . . . Special Weapon 1 | . . 1 . Impact Weapon . | . . . . Slashing Weapon . | . . . . Piercing Weapon . | . . . . Special Melee Weapon . | . . . . Unidentified Prototypes 1 | . . . 1 Parts Lost 7 | . 2 3 2 Power 1 | . . 1 . Propulsion 2 | . . 1 1 Utility 2 | . . 1 1 Weapon 2 | . 2 . . Highest Loss Streak 3 | . 2 3 2 To Critical Strikes . | . . . . Average Slot Usage (%) 90 | . 96 98 77 Engine 12 | . 14 13 11 Leg 25 | . 28 27 21 Device 2 | . . . 5 Storage 12 | . 14 14 11 Protection 10 | . 12 13 6 Energy Gun 2 | . 12 . . Energy Cannon 9 | . . 7 16 Ballistic Gun 13 | . 14 19 5 Naked Turns . | . . . . Heaviest Build 59 | 12 48 52 59 Greatest Support 20 | 20 20 20 20 Greatest Overweight (x) 2 | 1 2 2 2 Average Overweight (x) 1 | . 1 2 2 Largest Inventory Capacity 25 | 8 25 20 20 Average Capacity 19 | 7 17 20 20 Most Carried 18 | 7 5 14 18 Average Carried 9 | 2 3 9 14 Final Capacity 20 | 8 20 20 20 Final Carried 18 | 2 5 14 18 Class Distribution -------------------- 100% | Mutant Dominant Class ---------------- Mutant | -10/Materials Mutant | -10/Mines Mutant | -9/Materials Resources | -11 -10 -10 -9 ----------- Run | Jun Mat Min Mat Matter Collected 543 | 211 159 71 102 Remotely . | . . . . Salvage Created 898 | . 245 198 455 Parts 53 | . 13 10 30 Haulers Intercepted 3 | . 1 . 2 Recyclers Shooed . | . . . . Parts Field Recycled . | . . . . Retrieved Matter . | . . . . Parts Self-Destructed . | . . . . Prevented . | . . . . Kills | -11 -10 -10 -9 ------- Run | Jun Mat Min Mat Combat Hostiles Destroyed 16 | . 6 5 5 Guns 9 | . 6 1 2 Cannons 7 | . . 4 3 Classes Destroyed 11 | . 5 3 3 Worker 1 | . . 1 . Tunneler 1 | . . 1 . Hauler 3 | . 1 . 2 Recycler 1 | . . . 1 Operator 1 | . 1 . . Watcher 3 | . 1 . 2 Swarmer 6 | . 5 . 1 Grunt 6 | . 1 4 1 Duelist 1 | . . . 1 Sentry 2 | . . . 2 Assembled 1 | . . 1 . Best Kill Streak 6 | . 4 6 3 Combat Bots Only 4 | . 3 4 2 Max Kills in Single Turn 2 | . 1 2 1 Gunslinging . | . . . . Exploded . | . . . . Melee . | . . . . Uniques/NPCs Destroyed . | . . . . Combat | -11 -10 -10 -9 -------- Run | Jun Mat Min Mat Damage Taken 1173 | . 520 254 399 Core 267 | . 130 54 83 Absorbed by Shields . | . . . . Redirected to Shielding 51 | . 45 6 . Core Remaining (%) 63 | 100 . 26 . Volleys Fired 72 | . 29 14 29 Largest 2 | . 2 2 2 Hottest 143 | . 80 100 143 Shots Fired 132 | . 50 24 58 Gun 74 | . 50 10 14 Cannon 54 | . . 10 44 Launcher . | . . . . Special 4 | . . 4 . Kinetic 52 | . 28 10 14 Thermal 66 | . 8 14 44 Explosive . | . . . . Electromagnetic 14 | . 14 . . Robot Hit Streak 5 | . 5 5 4 Robot Miss Streak 11 | . 4 1 11 Penetration Max . | . . . . Secondary Targets 2 | . 2 . . Max Gunslinging Chain 1 | . 1 . . Shots Hit Robots 62 | . 25 13 24 Core Hits 32 | . 10 8 14 Critical Kills . | . . . . Critical Parts Destroyed . | . . . . Critical Strikes . | . . . . Melee Attacks . | . . . . Impact . | . . . . Slashing . | . . . . Piercing . | . . . . Sneak Attacks . | . . . . Combat Hostiles . | . . . . Follow-up Attacks . | . . . . Damage Inflicted 1207 | . 344 269 594 Guns 507 | . 344 95 68 Cannons 676 | . . 150 526 Explosions . | . . . . Melee . | . . . . Ramming . | . . . . Kinetic 349 | . 186 95 68 Thermal 766 | . 66 174 526 Explosive . | . . . . Electromagnetic 92 | . 92 . . Impact . | . . . . Slashing . | . . . . Piercing . | . . . . Highest Corruption . | . . . . Average Corruption . | . . . . Corruption Purged . | . . . . Corruption Blocked . | . . . . Overload Shots . | . . . . Overflow Damage . | . . . . Projectiles . | . . . . Explosions . | . . . . Melee . | . . . . Knockbacks . | . . . . Impact . | . . . . Kinetic . | . . . . Secondary . | . . . . Self-Inflicted Damage . | . . . . Shots . | . . . . Rammed . | . . . . Targets Rammed . | . . . . Kicked . | . . . . Crushed . | . . . . Highest Temperature 376 | . 102 259 376 Average Temperature 115 | . 60 111 134 Received Heat Transfer 430 | . 66 220 144 Effects 5 | . . 1 4 Shutdowns 1 | . . . 1 Energy Bleed 2 | . . 1 1 Interference 2 | . . . 2 Siege Activations . | . . . . Robots Corrupted . | . . . . Combat Hostiles . | . . . . Parts Fried . | . . . . Impact Corruptions . | . . . . Robots Melted . | . . . . Combat Hostiles . | . . . . Parts Melted 3 | . 1 1 1 Heat Transferred 1162 | . 150 272 740 Parts Sabotaged . | . . . . Parts Stolen . | . . . . Parts Stripped . | . . . . Power Chain Reactions . | . . . . Missiles Intercepted . | . . . . Alert | -11 -10 -10 -9 ------- Run | Jun Mat Min Mat Peak Influence 198 | . 134 63 198 Initial 27 | . . 27 24 Average 46 | . 57 15 78 Maximum Alert Level . | . . . . Low Security (%) 100 | 100 100 100 100 Level 1 . | . . . . Level 2 . | . . . . Level 3 . | . . . . Level 4 . | . . . . Level 5 . | . . . . High Security . | . . . . Max Security . | . . . . Squads Dispatched 1 | . . 1 . Investigation 1 | . . 1 . Extermination . | . . . . Reinforcement . | . . . . Assault . | . . . . Garrison . | . . . . Intercept . | . . . . Searches Triggered . | . . . . Construction Impeded . | . . . . Haulers Reinforced . | . . . . Active Scanning Responses . | . . . . Cargo Convoy Interrupts . | . . . . Stealth | -11 -10 -10 -9 --------- Run | Jun Mat Min Mat Distress Signals . | . . . . Communications Jammed . | . . . . Distress Signals . | . . . . Times Spotted 31 | . 11 5 15 Peak Tracking Total 4 | . 4 4 3 Tactical Retreats 2 | . . 1 1 Traps | -11 -10 -10 -9 ------- Run | Jun Mat Min Mat Traps Triggered . | . . . . Indirectly . | . . . . Trap Hack Attempts . | . . . . Triggered . | . . . . Disarmed . | . . . . Reprogrammed . | . . . . Reused . | . . . . Traps Extracted . | . . . . Installed . | . . . . Triggered . | . . . . Machines | -11 -10 -10 -9 ---------- Run | Jun Mat Min Mat Machines Disabled 4 | . 1 . 3 Max in Single Turn 1 | . 1 . 1 Machines Repaired . | . . . . Machines Sabotaged . | . . . . Overloaded Fab Kills . | . . . . Hacking | -11 -10 -10 -9 --------- Run | Jun Mat Min Mat Machines Accessed 4 | . 1 1 2 Terminals 3 | . 1 . 2 Fabricators . | . . . . Repair Stations . | . . . . Recycling Units . | . . . . Scanalyzers . | . . . . Garrison Access . | . . . . Total Hacks 9 | . 4 1 4 Successful 3 | . 1 1 1 Failed 6 | . 3 . 3 Catastrophic 2 | . 1 . 1 Database Lockouts . | . . . . Manual 4 | . . . 4 Terminals 8 | . 4 . 4 Fabricators . | . . . . Repair Stations . | . . . . Recycling Units . | . . . . Scanalyzers . | . . . . Garrison Access . | . . . . Terminal Hacks 3 | . 1 1 1 Prototype ID Bank 1 | . 1 . . Open Door 1 | . . 1 . Branch Access Points 1 | . . . 1 Fabricator Hacks . | . . . . Repair Station Hacks . | . . . . Recycling Unit Hacks . | . . . . Scanalyzer . | . . . . Garrison Access Hacks . | . . . . Unauthorized Hacks . | . . . . Terminals . | . . . . Fabricators . | . . . . Repair Stations . | . . . . Recycling Units . | . . . . Scanalyzers . | . . . . Garrison Access . | . . . . Data Cores Recovered 1 | . 1 . . Used . | . . . . Hacking Detections 3 | . 1 . 2 Full Trace Events . | . . . . Feedback Events . | . . . . Feedback Blocked . | . . . . Robot Schematics Acquired . | . . . . Robots Built . | . . . . Authchips . | . . . . Time . | . . . . Total Robot Build Rating . | . . . . Part Schematics Acquired . | . . . . Parts Built . | . . . . Authchips . | . . . . Time . | . . . . Total Part Build Rating . | . . . . Parts Repaired . | . . . . Time . | . . . . Parts Recycled . | . . . . Recycled Matter . | . . . . Retrieved Matter . | . . . . Retrieved Components . | . . . . Parts Scanalyzed . | . . . . Part Schematics Acquired . | . . . . Parts Damaged . | . . . . Bothacking | -11 -10 -10 -9 ------------ Run | Jun Mat Min Mat Used RIF Installer . | . . . . Robots Hacked . | . . . . Non-combat . | . . . . Combat . | . . . . Robot Hacks Applied . | . . . . Relay Couplers Released . | . . . . Fabnet Peak Effective % . | . . . . Robots Rewired . | . . . . Allies Hacked . | . . . . Hacks Repelled . | . . . . Allies | -11 -10 -10 -9 -------- Run | Jun Mat Min Mat Total Allies . | . . . . Largest Group . | . . . . Highest-Rated Group . | . . . . Highest-Rated Ally . | . . . . Total Orders . | . . . . Ally Attacks . | . . . . Total Damage . | . . . . Kills . | . . . . Allies Corrupted . | . . . . Allies Melted . | . . . . Intel | -11 -10 -10 -9 ------- Run | Jun Mat Min Mat Robot Analysis Total . | . . . . Derelict Logs Recovered 3 | . . 3 . Drone Launches . | . . . . Drone Recoveries . | . . . . Exploration | -11 -10 -10 -9 ------------- Run | Jun Mat Min Mat Turns Passed 2186 | 45 510 878 753 Spaces Moved 787 | 35 201 312 239 Core 16 | 16 . . . Treads . | . . . . Legs 771 | 19 201 312 239 Wheels . | . . . . Hover . | . . . . Flight . | . . . . Fastest Speed 50 | 50 120 260 260 Average Speed 238 | 92 204 260 260 Slowest Speed 260 | 120 260 260 260 Overloaded Moves . | . . . . Propulsion Burnouts . | . . . . Robots Hopped . | . . . . Cave-ins Triggered . | . . . . Exploration Rate (%) 35 | 3 40 71 26 Regions Visited 3 Branch Regions 1 Pre-discovered Areas 1 | . . 1 . Known Exits Taken . | . . . . Unknown Exits Taken 3 | 1 1 1 . Scrap Searched 1 | . . 1 . Spaces Dug 2 | . . 2 . Terrain Destroyed 19 | . . 6 13 Melee . | . . . . Projectile 19 | . . 6 13 AOE . | . . . . Terrain Rammed . | . . . . Walls Destroyed . | . . . . Machines Disabled . | . . . . Actions | -11 -10 -10 -9 --------- Run | Jun Mat Min Mat Total 953 | 47 250 346 310 Wait 31 | . 2 5 24 Move 784 | 34 200 311 239 Hop . | . . . . Pick Up 35 | 7 9 11 8 Fast Attach 1 | 1 . . . Attach 12 | 5 3 2 2 Detach . | . . . . Swap 13 | . 4 3 6 Drop 5 | . 3 . 2 Fire 72 | . 29 14 29 Melee . | . . . . Ram . | . . . . Kick . | . . . . Crush . | . . . . Escape Stasis . | . . . . Rewire . | . . . . Trap . | . . . . Miscellaneous . | . . . . Route ------- -11/Junkyard -10/Materials (discovered 2 exits: *Min x2) -10/Mines -9/Materials (discovered 1 exit: Min) History --------- Turn | Location | Event 10 | -11/Junkyard | Discovered new exit (range 16) 46 | -11/Junkyard | Entered Materials 46 | -10/Materials | Discovered new exit (range 7) 208 | -10/Materials | Discovered new exit (range 16) 319 | -10/Materials | Build established: Mutant 469 | -10/Materials | Core integrity fell below 50% 556 | -10/Materials | Entered Mines 567 | -10/Mines | Learned location of Storage (-7) 600 | -10/Mines | Met a Derelict bent on vengeance 801 | -10/Mines | Learned Materials trap positions 864 | -10/Mines | Met a Derelict shopkeep closing up shop 1060 | -10/Mines | Learned 2 Materials zone layouts 1166 | -10/Mines | Received a Rocket Launcher from a helpful Derelict 1298 | -10/Mines | Discovered new exit (range 13) 1334 | -10/Mines | Excavation squad dispatched 1334 | -10/Mines | A large section of the Mines collapsed 1420 | -10/Mines | Lost 3 parts (1p1n1u) 1434 | -10/Mines | Entered Materials 1434 | -9/Materials | Evolved 2 slots: Utility x2 1436 | -9/Materials | Loaded intel: 11 trap records 1880 | -9/Materials | Identified exit to Mines 2187 | -9/Materials | Self-destructed Last Messages --------------- 02093_ G-34 Mercenary destroyed. 02094_ K-01 Serf collects debris. 02101_ Acquired Aluminum Leg. 02110_ Y-45 Defender destroyed. 02112_ K-01 Serf collects debris. 02152_ C-30 ARC bursts open, deploying its payload. 02152_ L-31 Rogue unfolds itself. 02152_ G-34 Mercenary unfolds itself. 02154_ K-01 Serf collects debris. 02162_ L-31 Rogue destroyed. 02162_ K-01 Serf collects debris. 02164_ U-05 Engineer builds a Wall. 02174_ Aluminum Leg destroyed. 02178_ Particle Charger destroyed. 02178_ U-05 Engineer builds a Wall. 02179_ K-01 Serf collects debris. 02184_ Power failure, Lgt. Ion Engine shutdown. 02185_ Overheating: System interference. 02185_ Assault Rifle temporarily disabled. 02185_ Hvy. Particle Cannon temporarily disabled. Map ----- +----------------------------------------------------+ | ??????????????????????????????????????????? | | ??????????????????????????????????????????? | | ??????????????????????????????????????????? | | ??????????????????????????????????????????? | | ??????????????????????????????????????????? | | ??????????????????????????????????????????? | | ?????????????????? ###??????????????# + ??????? | | ?????????????????? #??????########### ##??????? | | ?????????????????? #??????# # #???????? | | ?????????????????? #??????# # #???????? | | ??????????????????+#####???# # #???????? | | ?????????????????? #???# # #???????? | | ?????????????????? #???# # #???????? | | ?????????????????? """ #???# + #???????? | | ?????????????????? """ #???# # #???????? | | ?????????????????? """ #???# # #???????? | | ?????????????????? #???#+##+##+### ##??????? | | ?????????????????? #???# ## ###+#??? | | ?????????????????? #???# ## * | | ??????????????????######???# !%! | | ????????????????????##?????# ####" "# [ | | ??????????????????###;###### #??## ## #####??? | | ?????????????????? + #???#+"###+#######??? | | ?????????????????? # = k##+#####% #??? | | ??????????????# u* #gg! # ## #??? | | ?????????????#; * ; / @#""" ## #??? | | ??????????????# # ####""" ## #??? | | ??????????????# = # ## #""" ## #??? | | ??????????????#/######%#### #######+########## | | ??????????????????### #####+###????# ![[ % | | ?????????????????? #??????# ![% ! *[ | | ????????????????????? ?????#%#??????# [[= =%* | | ????????????????????###?????# ######## ######### | | ????????????????????????????# ^ # !# | | ????????????????????????????# ^^ # # | | ???????????????????????????## "" + # | | ???????????????????????????#" "Y% %%"" # ^ # | | ???????????????????????????#T "^ ^""" #######+# | | ???????????????????????????#" = ^% "%" ####### # | | ???????????????????????????## % % # | | ????????????????????????????# # | | ????????????????????????????# + | | ????????????????????????????# # | | ????????????????????????????# ### ## | | ????????????????????????????# #?############### ## | | ????????????????????????????# #?????? # | | ????????????????????????????# #?????# """ """ # | | ????????????????????????????# #?????# """ """ + | | ????????????????????????????# #?????# """ """ # | | ????????????????????????????# #?????# """ """ # | +----------------------------------------------------+ Best States ------------- Heat Dissipation 28 Energy Generation 10 Energy Capacity 125 Matter Stores 300 Matter Capacity 300 Sight Range 16 Terrain Scan Density 10 Armor Coverage 150 Propulsion Shielding 33 Evasion (%) 55 Particle Charging 15 Item Schematics ----------------- None Robot Schematics ------------------ None Fabricated ------------ Nothing Alien Tech Used ----------------- None Achievements -------------- None Challenges ------------ None Game ------ Seed MinesnifferSmallAutocannon Manual? 0 Play Time 00:13:07 Cumulative 60.8 hours Start 2023.10.15 @ 21:02:22 End 2023.10.15 @ 21:11:53 Sessions 1 Manual Loads 0 Difficulty Rogue Special Mode None Game No. 107 Rogue 104 Adventurer 3 Explorer 0 Win Type - Total 0 Types 0/0/0/0/0/0/0/0/0 Lore% 33 Gallery% 48 Achievement% 33 Wizard Run 0 Options --------- ASCII 0 Keyboard 0 Movement Mouse Keybinds 0 Fullscreen 2 Font 18/SmallcapsGlow Map View 76x50 Tactical HUD 1 Map Filters NONE Filters NONE Steam 1 RUN: a9767e45-686b-4573-ad77-86f3294bb51c